Workbook

Sheet 合計請求書
R2: 月分 合計請求書 | AJ2: 住所：
C3: 株式会社 ニシオカ 御中
AI4: 会社名：
O5: 請求日 | T5: 年 | W5: 月 | Z5: 日
AJ6: TEL：
AJ7: FAX：
AJ8: 登録番号 Ｔ
C9: 請求額（税込） | G9: =AJ29 -> 0 | AI9: 振込先：
P11: 内 訳 明 細 | AS11: ※
C12: No. | E12: 工 事 名 | R12: 契 約 金 額（税込） | AA12: 前回迄の入金額（税込） | AJ12: 今 回 請 求 額（税込） | AS12: 支 払 金 額（税込）
C29: 計 | R29: =SUM(R13:Z28) -> 0 | AA29: =SUM(AA13:AI28) -> 0 | AJ29: =SUM(AJ13:AR28) -> 0 | AS29: =SUM(AS13:BA28) -> 0
Q31: ※ | R31: 振 込 | AA31: 安全協力会費 | AJ31: そ の 他 | AS31: 合計支払金額
R35: 太枠内を記入して下さい。※印欄は記入しないで下さい。
D37: 請求書は当月分をまとめて、合計請求書と契約請求内訳書・契約外請求内訳書を併せて毎月末日締切 翌月6日迄に必着の事。（翌月末日支払）
D38: 締切期日以後到着分は支払査定から外れますので次回の支払となります。

Sheet 契約請求内訳書
B2: 株式会社 ニシオカ 御中 | K2: 契 約 請求内訳書 | AF2: 住所： | AI2: =IF(合計請求書!AL2="","",合計請求書!AL2) ->  | BA2: 印
AE3: 会社名： | AI3: =IF(合計請求書!AL4="","",合計請求書!AL4) -> 
M4: =IF(合計請求書!Q5="","",合計請求書!Q5) ->  | P4: 年 | Q4: =IF(合計請求書!U5="","",合計請求書!U5) ->  | S4: 月 | U4: =IF(合計請求書!X5="","",合計請求書!X5) ->  | X4: 日
B7: 現場名 | R7: 契 約 見積精算 | X7: 金額
AA8: （税込）
B9: =IF(合計請求書!P2="","",合計請求書!P2) ->  | E9: 月末日の出来高 | G9: =G15+G12 -> 0
B11: （税込） | R11: 支 払 額
B12: 前 回 迄 の 入 金 額
R13: （税込）
B14: （税込） | R14: 社 長 | Y14: 現 場 担 当 | AF14: 入 力 | AM14: 経 理
B15: 今 回 請 求 額 | G15: =G30 -> 0
B17: （税込）
R18: 月 日 | Y18: 月 日 | AF18: 月 日 | AM18: 月 日 | AT18: 月 日
B19: 月 日 | D19: 摘 要 | G19: 金 額
R20: 担当者 | T20: 査 定 額
T21: 消 費 税
T22: 計
R23: 摘 要
B28: 小 計 | G28: =SUM(G20:O27) -> 0 | R28: 前回迄の支払額 | AE28: （税込）
B29: 消 費 税 | G29: =ROUNDDOWN(G28*10%,1) -> 0 | R29: 差 引 支 払 額 | AE29: （税込）
B30: 合 計 | G30: =SUM(G28:O29) -> 0 | R30: 契 約 残 高 | AE30: （税込）
B32: 請求書は当月分をまとめて、合計請求書と契約請求内訳書、契約外請求内訳書を | T32: 太枠内を記入して下さい
B33: 併せて、毎月末日締切 翌月6日迄に必着の事。（翌月末日支払） | T33: ※印欄は記入しないで下さい
B34: 締切期日以後到着分は支払査定から外れますので次回の支払となります。 | T34: 1部提出して下さい

Sheet 契約外請求内訳書
B2: 株式会社 ニシオカ 御中 | K2: 契 約 外 請求内訳書 | AF2: 住所： | AI2: =IF(合計請求書!AL2="","",合計請求書!AL2) ->  | BA2: 印
AE3: 会社名： | AI3: =IF(合計請求書!AL4="","",合計請求書!AL4) -> 
M4: =IF(合計請求書!Q5="","",合計請求書!Q5) ->  | P4: 年 | Q4: =IF(合計請求書!U5="","",合計請求書!U5) ->  | S4: 月 | U4: =IF(合計請求書!X5="","",合計請求書!X5) ->  | X4: 日
R7: 見 積 金 額
R9: （税込）
B10: 現場名
Q12: ※ | R12: 支 払 額
B13: =IF(合計請求書!P2="","",合計請求書!P2) ->  | E13: 月末日の出来高
R14: （税込）
B15: （税込） | R15: 社 長 | Y15: 現 場 担 当 | AF15: 入 力 | AM15: 経 理
B16: 今 回 請 求 額 | G16: =G31 -> 0
B18: （税込）
R19: 月 日 | Y19: 月 日 | AF19: 月 日 | AM19: 月 日 | AT19: 月 日
B20: 月 日 | D20: 摘 要 | G20: 金 額
Q21: ※ | R21: 担当者 | T21: 査 定 額
T22: 消 費 税
T23: 計
R24: 摘 要
B29: 小 計 | G29: =SUM(G21:O28) -> 0
B30: 消 費 税 | G30: =ROUNDDOWN(G29*10%,1) -> 0
B31: 合 計 | G31: =SUM(G29:O30) -> 0
B33: 請求書は当月分をまとめて、合計請求書と契約請求内訳書、契約外請求内訳書を | T33: 太枠内を記入して下さい
B34: 併せて、毎月末日締切 翌月6日迄に必着の事。（翌月末日支払） | T34: ※印欄は記入しないで下さい
B35: 締切期日以後到着分は支払査定から外れますので次回の支払となります。 | T35: 1部提出して下さい

Sheet 合計請求書 (記入例)
A1: 【記入例】
P2: 10 | R2: 月分 合計請求書 | AJ2: 住所： | AL2: 岡山県○○市□□1-2-3
C4: 株式会社 ニシオカ 御中 | AI4: 会社名： | AL4: 株式会社 ○○○○
O5: 請求日 | Q5: 2021 | T5: 年 | U5: 10 | W5: 月 | X5: 31 | Z5: 日
AJ6: TEL： | AL6: 086-×××-××××
AJ7: FAX： | AL7: 086-×××-××××
AJ8: 登録番号 Ｔ 〇〇〇〇〇〇〇
C9: 請求額（税込） | G9: =AJ29 -> 3132000 | AI9: 振込先： | AL9: 〇〇銀行 〇〇支店
AL10: 口座番号： (普) 〇〇〇〇〇
P11: 内 訳 明 細 | AS11: ※
C12: No. | E12: 工 事 名 | R12: 契 約 金 額（税込） | AA12: 前回迄の入金額（税込） | AJ12: 今 回 請 求 額（税込） | AS12: 支 払 金 額（税込）
D13: 1 | E13: ★〇〇〇〇工事 | R13: 2992000 | AA13: 400000 | AJ13: 2592000
D15: 2 | E15: ●〇〇〇〇工事 | R15: 540000 | AA15: 0 | AJ15: 540000
C29: 計 | R29: =SUM(R13:Z28) -> 3532000 | AA29: =SUM(AA13:AI28) -> 400000 | AJ29: =SUM(AJ13:AR28) -> 3132000 | AS29: =SUM(AS13:BA28) -> 0
Q31: ※ | R31: 振 込 | AA31: 安全協力会費 | AJ31: そ の 他 | AS31: 合計支払金額
R35: 太枠内を記入して下さい。※印欄は記入しないで下さい。
D37: 請求書は当月分をまとめて、合計請求書と契約請求内訳書・契約外請求内訳書を併せて毎月末日締切 翌月6日迄に必着の事。（翌月末日支払）
D38: 締切期日以後到着分は支払査定から外れますので次回の支払となります。

Sheet 契約請求内訳書(記入例)
A2: 【記入例】 | K2: 契 約 請求内訳書 | AF2: 住所： | AI2: 岡山県○○市□□1-2-3 | BA2: 印
AE3: 会社名： | AI3: 株式会社 ○○○○
B4: 株式会社 ニシオカ 御中 | M4: 2018 | P4: 年 | Q4: 10 | S4: 月 | U4: 31 | X4: 日
B7: 現場名 | C7: ★〇〇〇〇工事 | R7: 契 約 見積精算 | X7: 金額 | AD7: 2992000
AA8: （税込）
B9: 10 | E9: 月末日の出来高 | G9: =G15+G12 -> 3040000
B11: （税込） | R11: 支 払 額
B12: 前 回 迄 の 入 金 額 | G12: 400000
R13: （税込）
B14: （税込） | R14: 社 長 | Y14: 現 場 担 当 | AF14: 入 力 | AM14: 経 理
B15: 今 回 請 求 額 | G15: =G30 -> 2640000
B17: （税込）
R18: 月 日 | Y18: 月 日 | AF18: 月 日 | AM18: 月 日 | AT18: 月 日
B19: 月 日 | D19: 摘 要 | G19: 金 額
B20: 10 | C20: 5 | D20: 〇〇〇〇 | G20: 1500000 | R20: 担当者 | T20: 査 定 額
C21: 10 | D21: 〇〇〇〇 | G21: 750000 | T21: 消 費 税
C22: 20 | D22: 〇〇〇〇 | G22: 150000 | T22: 計
R23: 摘 要
B28: 小 計 | G28: =SUM(G20:O27) -> 2400000 | R28: 前回迄の支払額 | AE28: （税込）
B29: 消 費 税 | G29: =ROUNDDOWN(G28*10%,0) -> 240000 | R29: 差 引 支 払 額 | AE29: （税込）
B30: 合 計 | G30: =SUM(G28:O29) -> 2640000 | R30: 契 約 残 高 | AE30: （税込）
B32: 請求書は当月分をまとめて、合計請求書と契約請求内訳書、契約外請求内訳書を | T32: 太枠内を記入して下さい
B33: 併せて、毎月末日締切 翌月6日迄に必着の事。（翌月末日支払） | T33: ※印欄は記入しないで下さい
B34: 締切期日以後到着分は支払査定から外れますので次回の支払となります。 | T34: 1部提出して下さい

Sheet 契約外請求内訳書 (記入例)
A2: 【記入例】 | K2: 契 約 外 請求内訳書 | AF2: 住所： | AI2: 岡山県○○市□□1-2-3 | BA2: 印
AE3: 会社名： | AI3: 株式会社 ○○○○
M4: 2018 | P4: 年 | Q4: 10 | S4: 月 | U4: 31 | X4: 日
B5: 株式会社 ニシオカ 御中
R7: 見 積 金 額 | AD7: 540000
R9: （税込）
B10: 現場名 | C10: ●〇〇〇〇工事
Q12: ※ | R12: 支 払 額
B13: 10 | E13: 月末日の出来高 | G13: 0
R14: （税込）
B15: （税込） | R15: 社 長 | Y15: 現 場 担 当 | AF15: 入 力 | AM15: 経 理
B16: 今 回 請 求 額 | G16: =G31 -> 550000
B18: （税込）
R19: 月 日 | Y19: 月 日 | AF19: 月 日 | AM19: 月 日 | AT19: 月 日
B20: 月 日 | D20: 摘 要 | G20: 金 額
B21: 10 | C21: 9 | D21: 〇〇〇〇 | G21: 460000 | Q21: ※ | R21: 担当者 | T21: 査 定 額
C22: 15 | D22: 〇〇〇〇 | G22: 40000 | T22: 消 費 税
T23: 計
R24: 摘 要
B29: 小 計 | G29: =SUM(G21:O28) -> 500000
B30: 消 費 税 | G30: =ROUNDDOWN(G29*10%,0) -> 50000
B31: 合 計 | G31: =SUM(G29:O30) -> 550000
B33: 請求書は当月分をまとめて、合計請求書と契約請求内訳書、契約外請求内訳書を | T33: 太枠内を記入して下さい
B34: 併せて、毎月末日締切 翌月6日迄に必着の事。（翌月末日支払） | T34: ※印欄は記入しないで下さい
B35: 締切期日以後到着分は支払査定から外れますので次回の支払となります。 | T35: 1部提出して下さい
